fUSD/lending_fUSD_20240803
["ID","MTS","AMOUNT","RATE_DAILY","PERIOD"]
[334027806,1722693034287,-270.32721242,0.00024899,2]
[334027808,1722693034297,-205.75981917,0.00024899,2]
[334027810,1722693034308,-165.36567453,0.00024899,2]
[334027812,1722693034318,-210.87847398,0.00024899,2]
[334027814,1722693034327,-155.0,0.00024899,2]
[334027816,1722693034338,-309.01921538,0.00024899,2]
[334027818,1722693034348,-363.85697976,0.00024899,2]
[334027820,1722693034358,-347.37102947,0.00024899,2]
[334027822,1722693034368,-2389.3626,0.000249,2]
[334027824,1722693034378,-1000.0,0.000249,2]
[334027826,1722693034388,-153.89,0.000249,31]
[334027828,1722693034398,-153.89,0.000249,31]
[334027830,1722693034408,-153.89,0.000249,31]
[334027832,1722693034418,-153.89,0.000249,31]
[334027834,1722693034428,-500.0,0.00024932,120]
[334027836,1722693034439,-500.0,0.00024978,9]
[334027838,1722693034448,-500.0,0.00024978,9]
[334027840,1722693034458,-500.0,0.00024978,9]
[334027842,1722693034468,-500.0,0.00024978,9]
[334027844,1722693034477,-500.0,0.00024978,9]
[334027846,1722693034487,-500.0,0.00024978,9]
[334027848,1722693034498,-500.0,0.00024978,9]
[334027850,1722693034510,-500.0,0.00024978,9]
[334027852,1722693034520,-500.0,0.00024978,9]
[334027854,1722693034530,-562.83,0.00024978,9]
[334027856,1722693034541,-500.0,0.00024978,9]
[334027857,1722693034550,-500.0,0.00024978,9]
[334027858,1722693034560,-500.0,0.00024978,9]
[334027859,1722693034571,-605.25,0.00024978,9]
[334027860,1722693034582,-500.0,0.00024978,9]
[334027861,1722693034592,-500.0,0.00024978,9]
[334027862,1722693034602,-500.0,0.00024978,9]
[334027863,1722693034613,-500.0,0.00024978,9]
[334027864,1722693034622,-500.0,0.00024978,9]
[334027866,1722693034633,-500.0,0.00024978,9]
[334027868,1722693034642,-500.0,0.00024978,9]
[334027870,1722693034652,-155.0,0.00024979,2]
[334027872,1722693034663,-1622.19894296,0.00024979,2]
[334027874,1722693034672,-454.19419225,0.00024979,2]
[334027876,1722693034683,-155.0,0.00024979,2]
[334027878,1722693034694,-164.25896098,0.00024979,2]
[334027880,1722693034704,-439.70755762,0.00024979,2]
[334027882,1722693034714,-1049.73016214,0.00024979,40]
[334027884,1722693034724,-722.78328973,0.00024989,2]
[334027886,1722693034734,-202.71790408,0.00024989,2]
[334027888,1722693034744,-476.52703085,0.00024989,2]
[334027890,1722693034755,-1049.73016214,0.00024989,40]
[334027892,1722693034772,-1500.0,0.00024989,2]
[334027894,1722693034782,-155.0,0.00024989,2]
[334027896,1722693034792,-722.78328973,0.00024989,2]
[334027897,1722693034802,-155.0,0.00024989,2]
[334027900,1722693034811,-155.0,0.00024989,2]
[334027901,1722693034821,-1274.49304289,0.00024989,2]
[334027903,1722693034831,-155.0,0.00024989,2]
[334027905,1722693034841,-628.09541039,0.00024989,2]
[334027907,1722693034850,-686.40870172,0.00024989,2]
[334027909,1722693034860,-1297.13015026,0.00024989,2]
[334027911,1722693034869,-264.27285274,0.00024989,2]
[334027913,1722693034879,-155.0,0.00024989,2]
[334027916,1722693034889,-1836.69666447,0.00024989,2]
[334027917,1722693034899,-653.07757773,0.00024989,2]
[334027920,1722693034909,-318.11221884,0.00024989,2]
[334027921,1722693034918,-155.0,0.00024989,2]
[334027923,1722693034928,-653.07757773,0.00024989,2]
[334027925,1722693034938,-1000.0,0.00024989,2]
[334027927,1722693034948,-484.76607857,0.00024996,2]
[334027929,1722693034958,-1930.20669701,0.00024996,2]
[334027931,1722693034968,-155.0,0.00024996,2]
[334027933,1722693034977,-155.0,0.00024996,2]
[334027935,1722693034987,-1183.97736117,0.00024996,2]
[334027937,1722693034996,-155.0,0.00024996,2]
[334027939,1722693035008,-484.76607857,0.00024996,2]
[334027941,1722693035018,-155.0,0.00024996,2]
[334027943,1722693035029,-155.0,0.00024996,2]
[334027945,1722693035039,-367.56511397,0.00024996,2]
[334027947,1722693035049,-365.42577775,0.00024996,10]
[334027949,1722693035059,-155.0,0.00024996,2]
[334027951,1722693035068,-191.21788968,0.00024996,2]
[334027953,1722693035078,-164.9628186,0.00024996,2]
[334027955,1722693035088,-500.0,0.00024998,9]
[334027957,1722693035098,-820.16,0.00024998,9]
[334027959,1722693035107,-500.0,0.00024998,9]
[334027961,1722693035118,-500.0,0.00024999,2]
[334027963,1722693035128,-495.13476103,0.00024999,2]
[334027965,1722693035138,-500.0,0.00024999,2]
[334027967,1722693035148,-500.0,0.00024999,2]
[334027969,1722693035157,-500.0,0.00024999,2]
[334027971,1722693035167,-500.0,0.00024999,2]
[334027973,1722693035177,-169.93450919,0.00024999,2]
[334027975,1722693035187,-18554.0,0.00024999,2]
[334027977,1722693035197,-500.0,0.00024999,9]
[334027979,1722693035207,-500.0,0.00024999,9]
[334027981,1722693035217,-500.0,0.00024999,9]
[334027983,1722693035227,-211.2897781,0.00024999,2]
[334027985,1722693035236,-371.32455337,0.00024999,2]
[334027987,1722693035246,-158.10285028,0.00024999,2]
[334027989,1722693035257,-820.16,0.00024999,9]
[334027991,1722693035267,-820.16,0.00024999,9]
[334027993,1722693035277,-820.16,0.00024999,9]
[334027995,1722693035287,-820.16,0.00024999,9]
[334027997,1722693035297,-820.16,0.00024999,9]
[334027999,1722693035306,-820.16,0.00024999,9]
[334028001,1722693035316,-820.16,0.00024999,9]
[334028002,1722693035326,-820.16,0.00024999,9]
[334028004,1722693035335,-820.16,0.00024999,9]
[334028006,1722693035346,-820.16,0.00024999,9]
[334028008,1722693035355,-820.16,0.00024999,9]
[334028010,1722693035365,-820.16,0.00024999,9]
[334028012,1722693035374,-820.16,0.00024999,9]
[334028013,1722693035384,-820.16,0.00024999,9]
[334028015,1722693035395,-820.16,0.00024999,9]
[334028016,1722693035404,-820.16,0.00024999,9]
[334028018,1722693035414,-820.16,0.00024999,9]
[334028020,1722693035424,-820.16,0.00024999,9]
[334028021,1722693035434,-820.16,0.00024999,9]
[334028023,1722693035444,-820.16,0.00024999,9]
[334028024,1722693035454,-820.16,0.00024999,9]
[334028026,1722693035463,-820.16,0.00024999,9]
[334028028,1722693035473,-820.33929505,0.00024999,9]
[334028029,1722693035483,-155.0,0.00024999,2]
[334028031,1722693035492,-188.63628821,0.00024999,2]
[334028035,1722693035536,-160.57401724,0.00024999,2]
[334028036,1722693035547,-500.0,0.00024999,9]
[334028038,1722693035556,-500.0,0.00024999,9]
[334028040,1722693035566,-572.92429976,0.00024999,9]
[334028042,1722693035578,-155.0,0.00024999,2]
[334028043,1722693035588,-509.96385478,0.00024999,9]
[334028045,1722693035598,-265.21397656,0.00024999,2]
[334028047,1722693035608,-155.0,0.00024999,2]
[334028049,1722693035618,-302.14498907,0.00024999,2]
[334028050,1722693035628,-179.80836061,0.00024999,2]
[334028052,1722693035637,-500.0,0.00024999,9]
[334028053,1722693035647,-500.0,0.00024999,9]
[334028055,1722693035656,-544.07372826,0.00024999,9]
[334028057,1722693035666,-500.0,0.00024999,9]
[334028058,1722693035675,-309.858783,0.00024999,9]
[334028060,1722693035685,-328.73840187,0.00025,2]
[334028062,1722693035694,-154806.48290361,0.00025,7]
[334028066,1722693035742,-441.2547861,0.00025,7]
[334028068,1722693035754,-2669.37803247,0.00025,7]
[334028070,1722693035765,-783.43432211,0.00025,7]
[334028072,1722693035776,-450.0,0.00025,7]
[334028074,1722693035787,-6318.91836194,0.00025,7]
[334028292,1722693038204,-5800.0,0.00019962,2]
[334028294,1722693038214,-155.0,0.0002012,2]
[334028295,1722693038224,-155.0,0.0002038,2]
[334028297,1722693038234,-7270.63072608,0.0002038,2]
[334028299,1722693038244,-10525.57010213,0.00020999,2]
[334028301,1722693038254,-349.40332406,0.00024124,2]
[334028303,1722693038267,-206.59146968,0.00024124,2]
[334028305,1722693038276,-155.0,0.00024989,2]
[334028307,1722693038286,-1930.20669701,0.00024989,2]
[334028309,1722693038295,-522.61,0.0002499,3]
[334028310,1722693038304,-284.96139182,0.00024996,2]
[334028312,1722693038313,-155.54759998,0.00024999,2]
[334028314,1722693038323,-155.0,0.00024999,2]
[334028316,1722693038332,-1138.09658459,0.00024999,2]
[334028318,1722693038341,-307558.24358614,0.00025,7]
[334028321,1722693038353,-483.7355491,0.00025,7]
[334028324,1722693038364,-4906.22145489,0.00025,7]
[334028338,1722693038474,-401.05803429,0.000233,2]
[334028494,1722693040137,-383.99185018,0.00019879,2]
[334028496,1722693040146,-1598.94196571,0.000233,2]
[334028498,1722693040156,-202.71790408,0.00024979,2]
[334028500,1722693040165,-155.0,0.00024999,2]
[334028502,1722693040175,-500.0,0.00024999,9]
[334028504,1722693040184,-2974.04327968,0.00025,7]
[334028506,1722693040195,-3094.16293897,0.00025,7]
[334028509,1722693040206,-11091.14206138,0.00025,7]
[334028511,1722693040221,-283.71,0.00025,7]
[334028525,1722693040356,-2609.61893862,0.00025,7]
[334028536,1722693040462,-581.93415398,0.00025,7]
[334028549,1722693040647,-1015.75187423,0.00025,7]
[334028780,1722693043088,-196.56350179,0.00011005,2]
[334028782,1722693043098,-155.0,0.00024979,2]
[334028784,1722693043108,-421.25,0.00024999,2]
[334028786,1722693043117,-940.68828442,0.00025,7]
[334028788,1722693043128,-1202.82442801,0.00025,7]
[334028790,1722693043140,-336.84091214,0.00025,7]
[334028792,1722693043151,-48085.12199119,0.00025,7]
[334028794,1722693043160,-13646.36809225,0.00025,2]
[334028797,1722693043178,-547.46957672,0.00025,2]
[334028799,1722693043189,-1700.6,0.00025,2]
[334028801,1722693043200,-427.149998,0.00025,2]
[334028803,1722693043211,-1502.81579274,0.00025,2]
[334028805,1722693043222,-623.25,0.00025,2]
[334028807,1722693043233,-1435.9301609,0.00025,2]
[334028907,1722693044516,-44042.92325754,0.00025,2]
[334028908,1722693044531,-760.21,0.00025,2]
[334028909,1722693044543,-316.28467946,0.00025,2]
[334028910,1722693044554,-827.19049739,0.00025,2]
[334028911,1722693044566,-1220.00000001,0.00025,2]
[334028912,1722693044580,-5788.8780231,0.00025,2]
[334028913,1722693044592,-355178.25221628,0.00025,2]
[334029064,1722693046441,-383.9918501,0.00020437,2]
[334029066,1722693046451,-250.0,0.00024299,2]
[334029068,1722693046461,-500.0,0.00024978,9]
[334029070,1722693046470,-500.0,0.00024978,9]
[334029072,1722693046480,-476.52703085,0.00024979,2]
[334029074,1722693046489,-500.0,0.00024999,9]
[334029076,1722693046500,-3589.18111905,0.00025,2]
[334029080,1722693046522,-359.08278976,0.00024124,2]
[334029082,1722693046532,-306.47014409,0.00025,2]
[334029084,1722693046544,-568.57253198,0.00025,2]
[334029086,1722693046555,-364.0900299,0.00025,2]
[334029870,1722693253079,250.0,0.00011,2]
[334029871,1722693314559,3847.81144791,0.00011,2]
[334029872,1722693338563,170.34699346,0.00011,2]
[334029873,1722693343241,449.14284782,0.00011,2]
[334029874,1722693343443,1049.72746869,0.00011,2]
[334029875,1722693345599,299.71268725,0.00011,2]
[334029877,1722693368335,412.76630026,0.00011,2]
[334029879,1722693774280,4685.33848718,0.00011,2]
[334029880,1722693786119,727.58054998,0.00011,2]
[334029881,1722693793092,2563.60831318,0.00011,2]
[334029882,1722693795079,871.55601316,0.00011,2]
[334029889,1722694188004,188.95,0.0001337,30]
[334029902,1722694233156,-540.81,0.00011219,2]
[334029903,1722694233167,-180.97019923,0.000119,2]
[334029904,1722694233177,-550.0,0.00012,2]
[334029905,1722694233186,-180.9701992,0.00012625,2]
[334029906,1722694233196,-200.0,0.0001268,2]
[334029907,1722694233206,-250.0,0.00012896,2]
[334029908,1722694233215,-155.0,0.00012924,2]
[334029909,1722694233225,-155.0,0.00013133,2]
[334029910,1722694233235,-600.0,0.00013136,2]
[334029911,1722694233245,-299.99,0.00013136,2]
[334029912,1722694233255,-155.0,0.00013165,2]
[334029913,1722694233265,-155.0,0.00013165,2]
[334029914,1722694233275,-155.0,0.00013165,2]
[334029915,1722694233285,-224.16085342,0.00013165,2]
[334029916,1722694233294,-155.0,0.00013283,2]
[334029917,1722694233304,-206.98655099,0.00013283,2]
[334029918,1722694233314,-947.72324924,0.00013297,2]
[334029919,1722694233325,-285.78,0.00013303,2]
[334029920,1722694233334,-499.99,0.00013333,2]
[334029921,1722694233344,-150.99,0.00013333,2]
[334029922,1722694233354,-1256.4439005,0.00013333,2]
[334029923,1722694233363,-200.0,0.00013333,2]
[334029924,1722694233372,-300.0,0.00013348,2]
[334029925,1722694233382,-616.47,0.00013349,2]
[334029926,1722694233392,-180.9701992,0.0001335,2]
[334029927,1722694233402,-2918.32,0.0001335,2]
[334029928,1722694233411,-150.0,0.00013479,2]
[334029929,1722694233421,-540.81,0.00013483,2]
[334029930,1722694233431,-405829.42391966,0.00013699,2]
[334029931,1722694233440,-22639.6617797,0.0001372,2]
[334029932,1722694233450,-8075.0,0.00013802,2]
[334029933,1722694233460,-200.0,0.00013873,2]
[334029934,1722694233470,-150.0,0.00013878,2]
[334029935,1722694233479,-163.86633386,0.00013888,2]
[334029936,1722694233490,-595.18736773,0.000139,2]
[334029937,1722694233499,-23900.0,0.00013966,2]
[334029938,1722694233509,-600.0,0.00014,2]
[334029939,1722694233519,-180.9701992,0.00014075,2]
[334029940,1722694233528,-9200.63,0.0001413,2]
[334029941,1722694233538,-162.09,0.00014598,2]
[334029942,1722694233549,-600.0,0.00014779,2]
[334029943,1722694233559,-180.9701992,0.000148,2]
[334029944,1722694233571,-1680.59,0.00014885,2]
[334029945,1722694233581,-499.99,0.000149,2]
[334029946,1722694233592,-1429.85307473,0.00015,4]
[334029947,1722694233601,-6725.14734602,0.00015,7]
[334029948,1722694233611,-595.18736765,0.00015122,2]
[334029949,1722694233620,-400.0,0.00015242,2]
[334029950,1722694233630,-15519.9,0.00015618,2]
[334029951,1722694233640,-540.81,0.00015746,2]
[334029952,1722694233649,-320.0,0.0001575,2]
[334029953,1722694233660,-250.0,0.0001575,2]
[334029954,1722694233669,-162.09,0.00016147,2]
[334029955,1722694233679,-595.18736765,0.00016344,2]
[334029956,1722694233688,-600.0,0.00016421,2]
[334029957,1722694233699,-163.86633382,0.00016641,2]
[334029958,1722694233708,-595.18736765,0.00017567,2]
[334029959,1722694233718,-162.09,0.00017696,2]
[334029960,1722694233727,-320.0,0.00017719,2]
[334029961,1722694233738,-540.81,0.0001801,2]
[334029962,1722694233748,-600.0,0.00018063,2]
[334029963,1722694233757,-595.18736765,0.00018789,2]
[334029964,1722694233766,-163.86633382,0.00019394,2]
[334029965,1722694233776,-155.0,0.00019398,2]
[334029966,1722694233787,-400.85725149,0.00019451,2]
[334029967,1722694233796,-155.0,0.00019451,2]
[334029968,1722694233806,-182.30787144,0.00019451,2]
[334029969,1722694233815,-2384.26329853,0.00019451,2]
[334029970,1722694233825,-1112.40214539,0.00019451,2]
[334029971,1722694233835,-722.78328973,0.00019451,2]
[334029972,1722694233844,-155.30539952,0.00019451,2]
[334029973,1722694233854,-159.47000849,0.00019599,2]
[334029974,1722694233863,-155.0,0.00019599,2]
[334029975,1722694233873,-320.0,0.00019688,2]
[334029976,1722694233882,-600.0,0.00019705,2]
[334029977,1722694233892,-158.19847396,0.00019899,2]
[334029978,1722694233902,-155.0,0.00019899,2]
[334029979,1722694233913,-923.43,0.00019923,2]
[334029980,1722694233924,-5800.0,0.00019945,2]
[334029981,1722694233933,-5800.0,0.00019953,2]
[334029982,1722694233943,-528.47533138,0.00019999,2]
[334029983,1722694233952,-10525.57010213,0.00019999,2]
[334029984,1722694233964,-155.0,0.00019999,2]
[334029985,1722694233974,-1500.0,0.0002,18]
[334029986,1722694233984,-5800.0,0.0002,2]
[334029987,1722694233994,-595.18736765,0.00020011,2]
[334029988,1722694234004,-445.85163864,0.00020109,2]
[334029989,1722694234013,-155.0,0.0002012,2]
[334029990,1722694234023,-155.0,0.0002012,2]
[334029991,1722694234032,-217.31438051,0.0002012,2]
[334029992,1722694234041,-540.81,0.00020274,2]
[334029993,1722694234051,-13282.2297308,0.0002038,2]
[334029994,1722694234064,-12019.66547655,0.0002038,2]
[334029995,1722694234075,-1091.71776483,0.0002038,2]
[334029996,1722694234087,-434.47,0.0002038,2]
[334029997,1722694234111,-4782.84240991,0.0002038,2]
[334029998,1722694234122,-3689.24344746,0.0002038,2]
[334029999,1722694234138,-155.0,0.00019398,2]
[334030000,1722694234148,-4080.04792031,0.0002038,2]
[334030001,1722694234160,-424.54627044,0.0002038,2]
[334030002,1722694234172,-967.1232922,0.0002038,2]
[334030003,1722694234182,-1601.42277021,0.0002038,2]
[334030004,1722694234194,-2623.158139,0.0002038,2]
[334030005,1722694234206,-329.14260328,0.0002038,2]
[334030006,1722694234223,-236.63828774,0.0002038,2]
[334030007,1722694234232,-202.521,0.00020471,2]
[334030008,1722694234241,-243.60279518,0.00020588,3]
[334030011,1722694238130,-310.0,0.00012928,2]
[334030012,1722694238139,-439.70755762,0.00019387,2]
[334030013,1722694238149,-380.01075921,0.00019725,2]
[334030014,1722694238158,-48.90009617,0.00020588,3]
[334030015,1722694238532,-464.49215407,0.00020588,3]
[334030020,1722694238636,-282.04696975,0.00020588,3]
[334030023,1722694238929,-566.76354058,0.00020588,3]
[334030025,1722694238941,-2291.38994815,0.00020588,3]
[334030027,1722694238952,-628.66127068,0.00020588,3]
[334030029,1722694238963,-2474.14322542,0.00020588,3]
[334030031,1722694238972,-7266.56841603,0.00020588,2]
[334030033,1722694238982,-414.42088347,0.00020821,2]
[334030035,1722694238991,-530.60813285,0.00020831,2]
[334030037,1722694239002,-1225.50144037,0.00020899,2]
[334030038,1722694239014,-310.875,0.00020899,2]
[334030041,1722694239026,-6628.30439943,0.00020899,2]
[334030043,1722694239037,-914.0500234,0.00020899,2]
[334030045,1722694239048,-2166.78342138,0.00020899,2]
[334030047,1722694239059,-6293.29673536,0.00020899,2]
[334030049,1722694239070,-358.33485164,0.00020899,2]
[334030174,1722694240343,-155.0,0.00020109,2]
[334030175,1722694240353,-3357.67903515,0.00020899,2]
[334030176,1722694240364,-2310.06028183,0.00020899,2]
[334030177,1722694240376,-3281.9,0.00020899,2]
[334030178,1722694240387,-3249.95340702,0.00020899,2]
[334030458,1722694243302,-155.0,0.00019398,2]
[334030460,1722694243312,-528.47533138,0.00019899,2]
[334030461,1722694243323,-159.92466862,0.00020999,2]
[334030464,1722694243338,-833.35076676,0.00020999,2]
[334030466,1722694243350,-411.57525395,0.00020999,2]
[334030468,1722694243359,-298.38594994,0.00020999,2]
[334030470,1722694243369,-1.86391969,0.00021015,2]
[334030472,1722694243380,-448.13608031,0.00021015,2]
[334030474,1722694243389,-279.0,0.00021015,2]
[334030476,1722694243398,-500.0,0.00021164,2]
[334030478,1722694243408,-595.18736765,0.00021233,2]
[334030480,1722694243417,-400.0,0.00021294,2]
[334030483,1722694243429,-320.0,0.00021656,2]
[334030484,1722694243439,-150.0,0.00021918,2]
[334030486,1722694243448,-163.86633382,0.00022147,2]
[334030488,1722694243457,-500.0,0.0002226,2]
[334030490,1722694243467,-595.18736765,0.00022456,2]
[334030492,1722694243476,-150.0,0.00022495,2]
[334030494,1722694243485,-200.0,0.00022509,2]
[334030496,1722694243494,-540.81,0.00022538,2]
[334030498,1722694243504,-150.0,0.00023071,2]
[334030500,1722694243513,-158.93,0.00023111,2]
[334030502,1722694243522,-711.17,0.00023181,2]
[334030504,1722694243531,-180.0,0.00023205,2]
[334030506,1722694243540,-500.0,0.00023356,2]
[334030508,1722694243550,-4473.05915228,0.00023451,2]
[334030510,1722694243560,-206.8346331,0.00023451,2]
[334030512,1722694243569,-6288.50435063,0.00023451,2]
[334030514,1722694243579,-3976.46597667,0.00023451,2]
[334030516,1722694243588,-1930.20669701,0.00023555,2]
[334030517,1722694243597,-320.0,0.00023625,2]
[334030519,1722694243606,-150.0,0.00023648,2]
[334030521,1722694243616,-595.18736765,0.00023678,2]
[334030523,1722694243625,-849.35,0.00023728,2]
[334030525,1722694243634,-3976.46597667,0.00023873,2]
[334030527,1722694243643,-366.9755387,0.00023873,2]
[334030529,1722694243652,-1297.13015026,0.00023873,2]
[334030530,1722694243661,-600.23497476,0.00023873,2]
[334030532,1722694243670,-205.60886598,0.00023873,2]
[334030534,1722694243679,-719.34566812,0.00023873,2]
[334030537,1722694243689,-1183.97736117,0.00023873,2]
[334030538,1722694243698,-1073.73542888,0.00023873,2]
[334030540,1722694243707,-400.0,0.00023956,2]
[334030542,1722694243716,-155.0,0.00024124,2]
[334030544,1722694243725,-5399.26968187,0.00024124,2]
[334030546,1722694243735,-1836.69666447,0.00024124,2]
[334030548,1722694243744,-236.13758284,0.00024124,2]
[334030550,1722694243753,-202.71790408,0.00024124,2]
[334030552,1722694243762,-628.09541039,0.00024124,2]
[334030553,1722694243772,-1274.49304289,0.00024124,2]
[334030555,1722694243781,-155.0,0.00024124,2]
[334030557,1722694243790,-307.11100125,0.00024124,40]
[334030559,1722694243799,-1138.09658459,0.00024124,2]
[334030561,1722694243809,-150.0,0.00024225,2]
[334030562,1722694243818,-844.0,0.00024259,2]
[334030565,1722694243828,-1000.0,0.00024418,2]
[334030566,1722694243837,-500.0,0.00024452,2]
[334030568,1722694243846,-844.0,0.00024509,2]
[334030570,1722694243855,-507.90841669,0.00024657,9]
[334030572,1722694243864,-500.0,0.00024657,9]
[334030574,1722694243873,-500.0,0.00024657,9]
[334030576,1722694243883,-500.0,0.00024657,9]
[334030578,1722694243892,-500.0,0.00024657,9]
[334030580,1722694243901,-500.0,0.00024657,9]
[334030582,1722694243910,-500.0,0.00024657,9]
[334030584,1722694243923,-387.79038477,0.00024718,2]
[334030585,1722694243932,-300.0,0.00024752,2]
[334030587,1722694243942,-844.0,0.00024759,2]
[334030589,1722694243951,-300.0,0.00024799,2]
[334030591,1722694243961,-500.0,0.000248,2]
[334030593,1722694243970,-150.0,0.00024802,2]
[334030595,1722694243979,-540.81,0.00024802,2]
[334030597,1722694243989,-151.08852123,0.00024818,2]
[334030599,1722694243998,-1500.0,0.00024826,2]
[334030601,1722694244007,-2328.0836,0.00024879,2]
[334030603,1722694244017,-12383.0055,0.00024879,2]
[334030605,1722694244027,-500.0,0.00024879,2]
[334030607,1722694244035,-300.0,0.00024885,2]
[334030609,1722694244044,-500.0,0.00024898,9]
[334030611,1722694244054,-500.0,0.00024898,9]
[334030612,1722694244063,-162.47515917,0.00024898,9]
[334030614,1722694244072,-500.0,0.00024898,9]
[334030616,1722694244082,-385.03620514,0.00024898,9]
[334030618,1722694244092,-500.0,0.00024898,9]
[334030620,1722694244101,-517.64,0.00024898,9]
[334030622,1722694244110,-500.0,0.00024898,9]
[334030623,1722694244119,-500.0,0.00024898,9]
[334030625,1722694244129,-500.0,0.00024898,9]
[334030627,1722694244139,-173.96422369,0.00024898,9]
[334030629,1722694244148,-250.0,0.00024898,9]
[334030631,1722694244158,-169.06995273,0.00024898,9]
[334030633,1722694244167,-155.0,0.00024899,2]
[334030635,1722694244176,-205.40364118,0.00024899,2]
[334030637,1722694244185,-243.04057273,0.00024899,2]
[334030639,1722694244195,-449.13043184,0.00024899,2]
[334030641,1722694244204,-278.03577863,0.00024899,2]
[334030643,1722694244214,-155.0,0.00024899,2]
[334030645,1722694244223,-1622.19894296,0.00024899,2]
[334030647,1722694244232,-253.15546124,0.00024899,2]
[334030649,1722694244242,-155.0,0.00024899,2]
[334030650,1722694244251,-1622.19894296,0.00024899,2]
[334030652,1722694244260,-484.76607857,0.00024899,2]
[334030654,1722694244269,-243.04057273,0.00024899,2]
[334030656,1722694244279,-165.36567453,0.00024899,2]
[334030658,1722694244288,-392.18,0.00024899,9]
[334030660,1722694244297,-648.94187411,0.000249,2]
[334030661,1722694244306,-161.53447551,0.000249,2]
[334030663,1722694244316,-3000.0,0.000249,2]
[334030665,1722694244325,-3000.0,0.000249,2]
[334030667,1722694244335,-3000.0,0.000249,2]
[334030669,1722694244343,-3000.0,0.000249,2]
[334030671,1722694244353,-3000.0,0.000249,2]
[334030673,1722694244362,-3000.0,0.000249,2]
[334030674,1722694244371,-3000.0,0.000249,2]
[334030676,1722694244380,-595.18736765,0.000249,2]
[334030678,1722694244389,-163.86633382,0.000249,2]
[334030680,1722694244399,-153.9,0.000249,31]
[334030682,1722694244408,-153.9,0.000249,31]
[334030684,1722694244417,-153.9,0.000249,31]
[334030686,1722694244426,-153.9,0.000249,31]
[334030687,1722694244435,-287.52963541,0.00024931,2]
[334030689,1722694244444,-1000.0,0.00024932,120]
[334030691,1722694244454,-500.0,0.00024932,120]
[334030693,1722694244463,-444.451411,0.0002495,120]
[334030695,1722694244472,-150.5,0.0002497,120]
[334030697,1722694244482,-500.0,0.00024978,9]
[334030698,1722694244491,-500.0,0.00024978,9]
[334030700,1722694244500,-164.25896098,0.00024979,2]
[334030702,1722694244509,-3079.46952702,0.00024979,2]
[334030704,1722694244519,-155.0,0.00024979,2]
[334030706,1722694244528,-162.55720152,0.00024979,2]
[334030708,1722694244538,-347.37102947,0.00024979,2]
[334030710,1722694244547,-1175.8459067,0.00024979,2]
[334030712,1722694244556,-264.27285274,0.00024979,2]
[334030714,1722694244566,-265.21397656,0.00024979,2]
[334030716,1722694244575,-359.08278976,0.00024979,2]
[334030717,1722694244585,-1175.8459067,0.00024979,2]
[334030719,1722694244594,-203.23601745,0.00024979,2]
[334030721,1722694244603,-2144.08330696,0.00024979,2]
[334030723,1722694244612,-188.63628821,0.00024979,2]
[334030724,1722694244621,-270.32721242,0.00024979,2]
[334030726,1722694244631,-164.23718751,0.00024979,2]
[334030728,1722694244640,-357.14442617,0.00024979,2]
[334030730,1722694244650,-155.0,0.00024979,2]
[334030732,1722694244659,-476.52703085,0.00024979,2]
[334030734,1722694244669,-2023.34906436,0.00024979,2]
[334030736,1722694244678,-245.39766554,0.00024979,2]
[334030737,1722694244688,-365.42577775,0.00024979,10]
[334030738,1722694244697,-53546.3356505,0.0002498,7]
[334030739,1722694244710,-614.29174979,0.0002498,7]
[334030740,1722694244721,-264.18399518,0.0002498,7]